[Event "POL-chT 2nd League-3 2020"]
[Site "Poronin"]
[Date "2020.09.12"]
[Round "8.23"]
[White "Sochacki, Zenon"]
[Black "Panek, Bartosz"]
[Result "0-1"]
[ECO "A52"]
[WhiteElo "1885"]
[BlackElo "1979"]
[Annotator "NA"]
[PlyCount "54"]
[EventDate "2020.09.05"]
[EventType "team-tourn"]
[EventCountry "POL"]
[SourceTitle "playchess.com"]
[Source "ChessBase"]
[SourceQuality "1"]
[WhiteTeam "KS SILESIA II Raciborz"]
[BlackTeam "UKS Ognisko Rydultowy"]
[WhiteTeamCountry "POL"]
[BlackTeamCountry "POL"]
[TimeControl "40/5400+30:900+30"]

1. d4 {[%emt 0:00:00]} Nf6 {[%emt 0:00:00]} 2. c4 {[%emt 0:00:00]} e5 {[%emt 0:00:00]} 3. dxe5 {[%emt 0:00:35]} Ng4 {[%emt 0:00:00]} 4. Bf4 {[%emt 0:00:26]} g5 {[%emt 0:00:08]} 5. Bg3 {[%emt 0:00:17]} Nc6 {[%emt 0:00:09]} 6. Nf3 {[%emt 0:00:11]} Bg7 {[%emt 0:00:15]} 7. Nc3 {[%emt 0:01:04]} Ngxe5 {[%emt 0:00:12]} 8. Nxe5 {[%emt 0:00:46]} Nxe5 {[%emt 0:00:07]} 9. e3 {[%emt 0:01:09]} d6 {[%emt 0:00:14]} 10. h4 {[%emt 0:00:39]} g4 {[%emt 0:00:06]} 11. h5 {[%emt 0:00:38]} h6 {[%emt 0:00:43]} 12. Qc2 {[%emt 0:05:03]} Be6 {[%emt 0:21:03]} 13. Bh4 {[%emt 0:23:47]} Bf6 {[%emt 0:00:44]} 14. Bxf6 {[%emt 0:04:11]} Qxf6 {[%emt 0:00:06]} 15. Ne4 {[%emt 0:02:13]} Qg7 {[%emt 0:07:32]} 16. Ng3 {[%emt 0:00:40]} O-O {[%emt 0:07:48]} 17. Be2 {[%emt 0:06:12]} f5 {[%emt 0:00:05]} 18. O-O {[%emt 0:00:44]} f4 {[%emt 0:00:23]} 19. exf4 {[%emt 0:00:06]} Rxf4 {[%emt 0:00:16]} 20. b3 {[%emt 0:00:09]} Raf8 {[%emt 0:08:44]} 21. Rad1 {[%emt 0:01:10]} Qg5 {[%emt 0:10:58]} 22. Bd3 {[%emt 0:10:01]} Bf7 {[%emt 0:03:34]} 23. Be4 {[%emt 0:01:25]} Bxh5 {[%emt 0:01:21]} 24. Bxb7 {[%emt 0:00:31]} Bg6 {[%emt 0:00:19]} 25. Qe2 {[%emt 0:03:11]} h5 {[%emt 0:02:57]} 26. Ne4 {[%emt 0:02:26]} Bxe4 {[%emt 0:01:07]} 27. Bxe4 {[%emt 0:00:22]} Rxe4 {[%emt 0:00:18]} 0-1

[Event "POL-chT 2nd League-3 2020"]
[Site "Poronin"]
[Date "2020.09.12"]
[Round "8.24"]
[White "Stebel, Agata"]
[Black "Suchanek, Paulina"]
[Result "1-0"]
[ECO "C00"]
[WhiteElo "1871"]
[BlackElo "1555"]
[Annotator "NA"]
[PlyCount "59"]
[EventDate "2020.09.05"]
[EventType "team-tourn"]
[EventCountry "POL"]
[SourceTitle "playchess.com"]
[Source "ChessBase"]
[SourceQuality "1"]
[WhiteTeam "UKS Ognisko Rydultowy"]
[BlackTeam "KS SILESIA II Raciborz"]
[WhiteTeamCountry "POL"]
[BlackTeamCountry "POL"]
[TimeControl "40/5400+30:900+30"]

1. e4 {[%emt 0:00:00]} e6 {[%emt 0:00:00]} 2. d3 {[%emt 0:00:00]} d5 {[%emt 0:00:00]} 3. Nd2 {[%emt 0:00:00]} Nd7 {[%emt 0:01:04]} 4. Ngf3 {[%emt 0:00:03]} dxe4 {[%emt 0:01:04]} 5. dxe4 {[%emt 0:00:26]} Ngf6 {[%emt 0:02:30]} 6. e5 {[%emt 0:03:36]} Ng4 {[%emt 0:07:55]} 7. Qe2 {[%emt 0:05:01]} Be7 {[%emt 0:11:54]} 8. h3 {[%emt 0:04:56]} Nh6 {[%emt 0:02:25]} 9. g4 {[%emt 0:03:31]} b6 {[%emt 0:03:27]} 10. Ne4 {[%emt 0:11:24]} Bb7 {[%emt 0:03:15]} 11. Bxh6 {[%emt 0:05:38]} gxh6 {[%emt 0:00:09]} 12. O-O-O {[%emt 0:04:44]} Qc8 {[%emt 0:05:26]} 13. Qe3 {[%emt 0:04:36]} a5 {[%emt 0:04:20]} 14. Bb5 {[%emt 0:03:35]} c6 {[%emt 0:02:49]} 15. Bc4 {[%emt 0:04:05]} c5 {[%emt 0:04:20]} 16. Nd6+ {[%emt 0:07:28]} Bxd6 {[%emt 0:00:04]} 17. Rxd6 {[%emt 0:01:50]} Bxf3 {[%emt 0:02:40]} 18. Qxf3 {[%emt 0:02:17]} Nxe5 {[%emt 0:00:17]} 19. Qf6 {[%emt 0:02:06]} Nxc4 {[%emt 0:09:46]} 20. Qxh8+ {[%emt 0:02:26]} Ke7 {[%emt 0:00:08]} 21. Qxc8 {[%emt 0:00:17]} Rxc8 {[%emt 0:00:06]} 22. Rd3 {[%emt 0:00:45]} Rg8 {[%emt 0:02:16]} 23. f4 {[%emt 0:03:10]} Nd6 {[%emt 0:01:29]} 24. Rhd1 {[%emt 0:01:05]} Ne4 {[%emt 0:01:29]} 25. Rd7+ {[%emt 0:02:06]} Kf6 {[%emt 0:00:09]} 26. Re1 {[%emt 0:01:19]} Nf2 {[%emt 0:04:25]} 27. Re3 {[%emt 0:01:46]} h5 {[%emt 0:03:55]} 28. g5+ {[%emt 0:01:36]} Kg6 {[%emt 0:00:59]} 29. Rd2 {[%emt 0:01:09]} Nh1 {[%emt 0:01:12]} 30. Rh2 {[%emt 0:00:45]} 1-0

[Event "POL-chT 2nd League-3 2020"]
[Site "Poronin"]
[Date "2020.09.13"]
[Round "9.5"]
[White "Panek, Bartosz"]
[Black "Gosciniak, Tomasz"]
[Result "0-1"]
[ECO "C10"]
[WhiteElo "1979"]
[BlackElo "1928"]
[Annotator "NA RC"]
[PlyCount "76"]
[EventDate "2020.09.05"]
[EventType "team-tourn"]
[EventCountry "POL"]
[SourceTitle "playchess.com"]
[Source "ChessBase"]
[SourceQuality "1"]
[WhiteTeam "UKS Ognisko Rydultowy"]
[BlackTeam "GKSz Solny Grzybowo"]
[WhiteTeamCountry "POL"]
[BlackTeamCountry "POL"]
[TimeControl "40/5400+30:900+30"]

1. e4 {[%emt 0:00:00]} e6 {[%emt 0:00:00]} 2. d4 {[%emt 0:00:00]} d5 {[%emt 0:00:00]} 3. Nc3 {[%emt 0:00:00]} c6 {[%emt 0:00:59]} 4. e5 {[%emt 0:01:33]} b6 {[%emt 0:02:14]} 5. f4 {[%emt 0:00:36]} Ba6 {[%emt 0:00:19] [#]} 6. Bxa6 $146 {[%emt 0:03:29] B15: Caro-Kann: 3 Nc3: 3...g6 and 3...dxe4 4 Nxe4 Nf6 5 Nxf6+ exf6.} ({Predecessor:} 6. Nce2 Ne7 7. Nf3 Nf5 8. g3 c5 9. Bh3 Bxe2 10. Kxe2 Nxd4+ 11. Nxd4 cxd4 12. Qxd4 {0-1 (27) Acosta,D (1780)-Galant,S (2180) Broken Arrow 2004}) 6... Nxa6 {[%emt 0:00:09]} 7. Qe2 {[%emt 0:00:05]} Qc8 {[%emt 0:01:49]} 8. Nf3 {[%emt 0:00:41]} Ne7 {[%emt 0:01:03]} 9. O-O {[%emt 0:02:10]} h5 {[%emt 0:00:38]} 10. Nh4 {[%emt 0:04:48]} g6 {[%emt 0:03:01]} 11. b3 {[%emt 0:00:46]} Nf5 {[%emt 0:02:46]} 12. Nxf5 {[%emt 0:00:09]} exf5 {[%emt 0:00:10]} 13. Nxd5 {[%emt 0:03:39]} cxd5 {[%emt 0:02:38]} 14. Qb5+ {[%emt 0:00:07]} Ke7 {[%emt 0:00:15]} 15. Qxd5 {[%emt 0:15:59]} Nc7 {[%emt 0:06:22]} 16. Qf3 {[%emt 0:03:30]} Qd7 {[%emt 0:01:42]} 17. Bb2 {[%emt 0:01:17]} Qd5 {[%emt 0:09:02]} 18. Qg3 {[%emt 0:02:26]} b5 {[%emt 0:03:35]} 19. c4 $1 {[%emt 0:00:14]} Qb7 {[%emt 0:06:53]} 20. d5 {[%emt 0:45:47]} Ke8 {[%emt 0:01:42]} 21. Rad1 {[%emt 0:08:13]} Bc5+ {[%emt 0:03:31]} 22. Kh1 {[%emt 0:00:10]} Rg8 {[%emt 0:00:32]} 23. Rfe1 {[%emt 0:00:38]} Rd8 {[%emt 0:02:07]} 24. Bc3 {[%emt 0:01:12]} b4 {[%emt 0:02:34]} 25. Bb2 $11 {[%emt 0:00:08]} Kd7 {[%emt 0:06:49]} 26. e6+ {[%emt 0:00:48]} fxe6 {[%emt 0:01:03]} 27. Bf6 {[%emt 0:00:29]} Rde8 {[%emt 0:02:38]} 28. dxe6+ {[%emt 0:00:10]} Kc8 {[%emt 0:00:06]} 29. e7 {[%emt 0:00:47]} Qc6 {[%emt 0:05:25]} 30. Qh4 {[%emt 0:02:37]} Ne6 {[%emt 0:01:09]} 31. Rd5 {[%emt 0:00:46]} g5 {[%emt 0:02:05]} 32. fxg5 {[%emt 0:01:15]} Bxe7 {[%emt 0:00:17]} 33. Bxe7 {[%emt 0:01:17]} Rxe7 {[%emt 0:00:07]} 34. Qf2 {[%emt 0:00:35]} Rxg5 {[%emt 0:02:27]} 35. Ree5 {[%emt 0:00:08]} Rd7 {[%emt 0:02:10]} 36. Qe3 {[%emt 0:00:46]} Rxd5 {[%emt 0:03:06]} 37. cxd5 {[%emt 0:00:02]} Qc2 {[%emt 0:00:05]} 38. Qf3 {[%emt 0:01:11]} Qc1+ {[%emt 0:00:11]} 0-1